Workbook

Sheet tab. rozdělení VHP
C1: Příloha č. 1 Usnesení Rady hl. m. Prahy č……………..
A2: Poskytnutí finančních prostředků obdržených jako část dílčího odvodu dle ust. § 41i odst. 1 písm.b) zákona č. 202/1990 Sb.,
A3: o loteriích a jiných podobných hrách městským částem hl. m. Prahy za 3. čtvrtletí roku 2012
A4: Městská část | B4: podíl městské části za 3.čtvrtletí 2012 v Kč | C4: podíl městské části zaokrouhleno v tis. Kč | D4: poskytnutí účelové neinvestiční dotace na podporu činnosti nestátních neziskových organizací působících na území městských částí , které zajišťují dlouhodobě organizovanou sportovní výchovu mládeže | E4: poskytnutí účelové neinvestiční dotace na kulturu, školství, zdravotnictví a sociální oblast v tis. Kč
A5: Praha 1 | B5: 6233200.46 | C5: =ROUND(B5/1000,1) -> 6233.2 | D5: =ROUND(B5/2/1000,1) -> 3116.6 | E5: =C5-D5 -> 3116.6
A6: Praha 10 | B6: 5624215.443 | C6: =ROUND(B6/1000,1) -> 5624.2 | D6: =ROUND(B6/2/1000,1) -> 2812.1 | E6: 2812.1
A7: Praha 11 | B7: 4099655.749 | C7: 4099.6 | D7: =ROUND(B7/2/1000,1) -> 2049.8 | E7: 2049.8
A8: Praha 12 | B8: 1688272.617 | C8: 1688.3 | D8: 844.2 | E8: 844.1
A9: Praha 13 | B9: 3181510.375 | C9: 3181.5 | D9: =ROUND(B9/2/1000,1) -> 1590.8 | E9: 1590.7
A10: Praha 14 | B10: 2009880.568 | C10: 2009.9 | D10: =ROUND(B10/2/1000,1) -> 1004.9 | E10: 1005
A11: Praha 15 | B11: 1736371.745 | C11: 1736.4 | D11: =ROUND(B11/2/1000,1) -> 868.2 | E11: 868.2
A12: Praha 16 | B12: 212217.9516 | C12: 212.2 | D12: =ROUND(B12/2/1000,1) -> 106.1 | E12: 106.1
A13: Praha 17 | B13: 1124342.479 | C13: 1124.3 | D13: =ROUND(B13/2/1000,1) -> 562.2 | E13: 562.1
A14: Praha 18 | B14: 487282.7241 | C14: 487.3 | D14: 243.7 | E14: 243.6
A15: Praha 19 | B15: 68461.76826 | C15: 68.5 | D15: 34.3 | E15: 34.2
A16: Praha 2 | B16: 4415310.503 | C16: 4415.3 | D16: =ROUND(B16/2/1000,1) -> 2207.7 | E16: 2207.6
A17: Praha 20 | B17: 604384.8198 | C17: 604.4 | D17: 302.2 | E17: 302.2
A18: Praha 21 | B18: 219456.4983 | C18: 219.4 | D18: 109.7 | E18: 109.7
A19: Praha 22 | B19: 199161.5077 | C19: 199.2 | D19: 99.6 | E19: 99.6
A20: Praha 3 | B20: 5937164.197 | C20: 5937.2 | D20: 2968.6 | E20: 2968.6
A21: Praha 4 | B21: 6736583.877 | C21: 6736.6 | D21: 3368.3 | E21: 3368.3
A22: Praha 5 | B22: 5355983.317 | C22: 5356 | D22: 2678 | E22: 2678
A23: Praha 6 | B23: 2455829.161 | C23: 2455.8 | D23: 1227.9 | E23: 1227.9
A24: Praha 7 | B24: 3271890.733 | C24: 3271.9 | D24: 1635.9 | E24: 1636
A25: Praha 8 | B25: 7817562.726 | C25: 7817.6 | D25: 3908.8 | E25: 3908.8
A26: Praha 9 | B26: 2890006.66 | C26: 2890 | D26: 1445 | E26: 1445
A27: Praha-Běchovice | B27: 6223.797115 | C27: 6.2 | D27: 3.1 | E27: 3.1
A28: Praha-Benice | B28: 0 | C28: 0 | D28: 0 | E28: 0
A29: Praha-Březiněves | B29: 49790.37692 | C29: 49.8 | D29: 24.9 | E29: 24.9
A30: Praha-Čakovice | B30: 262481.8783 | C30: 262.5 | D30: 131.2 | E30: 131.3
A31: Praha-Ďáblice | B31: 99580.75383 | C31: 99.6 | D31: 49.8 | E31: 49.8
A32: Praha-Dolní Chabry | B32: 18671.39134 | C32: 18.7 | D32: 9.3 | E32: 9.4
A33: Praha-Dolní Měcholupy | B33: 120822.844 | C33: 120.8 | D33: 60.4 | E33: 60.4
A34: Praha-Dolní Počernice | B34: 24895.18846 | C34: 24.9 | D34: 12.4 | E34: 12.5
A35: Praha-Dubeč | B35: 49790.37692 | C35: 49.8 | D35: 24.9 | E35: 24.9
A36: Praha-Klánovice | B36: 68461.76826 | C36: 68.5 | D36: 34.2 | E36: 34.3
A37: Praha-Koloděje | B37: 0 | C37: 0 | D37: 0 | E37: =C37-D37 -> 0
A38: Praha-Kolovraty | B38: 6223.797115 | C38: 6.2 | D38: 3.1 | E38: 3.1
A39: Praha-Královice | B39: 6223.797115 | C39: 6.2 | D39: 3.1 | E39: 3.1
A40: Praha-Křeslice | B40: 0 | C40: 0 | D40: 0 | E40: 0
A41: Praha-Kunratice | B41: 44716.62927 | C41: 44.7 | D41: 22.4 | E41: 22.3
A42: Praha-Libuš | B42: 1226088.032 | C42: 1226.1 | D42: 613 | E42: 613.1
A43: Praha-Lipence | B43: 12447.59423 | C43: 12.4 | D43: 6.2 | E43: 6.2
A44: Praha-Lochkov | B44: 0 | C44: 0 | D44: 0 | E44: 0
A45: Praha-Lysolaje | B45: 0 | C45: 0 | D45: 0 | E45: 0
A46: Praha-Nebušice | B46: 12447.59423 | C46: 12.4 | D46: 6.2 | E46: 6.2
A47: Praha-Nedvězí | B47: 12447.59423 | C47: 12.4 | D47: 6.2 | E47: 6.2
A48: Praha-Petrovice | B48: 18671.39134 | C48: 18.7 | D48: 9.3 | E48: 9.4
A49: Praha-Přední Kopanina | B49: 0 | C49: 0 | D49: 0 | E49: 0
A50: Praha-Řeporyje | B50: 74414.9655 | C50: 74.4 | D50: 37.2 | E50: 37.2
A51: Praha-Satalice | B51: 69611.81773 | C51: 69.6 | D51: 34.8 | E51: 34.8
A52: Praha-Slivenec | B52: 43566.5798 | C52: 43.6 | D52: 21.8 | E52: 21.8
A53: Praha-Suchdol | B53: 62237.97115 | C53: 62.2 | D53: 31.1 | E53: 31.1
A54: Praha-Šeberov | B54: 0 | C54: 0 | D54: 0 | E54: 0
A55: Praha-Štěrboholy | B55: 6223.797115 | C55: 6.2 | D55: 3.1 | E55: 3.1
A56: Praha-Troja | B56: 0 | C56: 0 | D56: 0 | E56: 0
A57: Praha-Újezd | B57: 0 | C57: 0 | D57: 0 | E57: 0
A58: Praha-Velká Chuchle | B58: 0 | C58: 0 | D58: 0 | E58: 0
A59: Praha-Vinoř | B59: 43566.5798 | C59: 43.6 | D59: 21.8 | E59: 21.8
A60: Praha-Zbraslav | B60: 296577.4625 | C60: 296.6 | D60: 148.3 | E60: 148.3
A61: Praha-Zličín | B61: 384387.1218 | C61: 384.4 | D61: 192.2 | E61: 192.2
A62: Celkem | B62: =SUM(B5:B61) -> 69389316.98 | C62: =SUM(C5:C61) -> 69389.3 | D62: =SUM(D5:D61) -> 34694.6 | E62: =SUM(E5:E61) -> 34694.7

Sheet List3
